[Event "Titled Tuesday Blitz May 24 Late 2022"]
[White "Janturin, Artur"]
[Black "Gatterer, Florian"]
[WhiteFideId "4130022"]
[BlackFideId "811688"]
[WhiteElo "2411"]
[BlackElo "2218"]
[Result "0-1"]
[Round "08"]
[TimeControl "180+1"]
[Date "2022.05.25"]
[WhiteClock "0:00:02"]
[BlackClock "0:00:11"]

1. b3 {[%clk 0:02:52]}  d5 {[%clk 0:02:55]} 2. Bb2 {[%clk 0:02:52]}  Bf5 {[%clk 0:02:54]} 3. e3 {[%clk 0:02:50]}  e6 {[%clk 0:02:54]} 4. f4 {[%clk 0:02:50]}  Nf6 {[%clk 0:02:48]} 5. Nf3 {[%clk 0:02:50]}  Nbd7 {[%clk 0:02:40]} 6. g3 {[%clk 0:02:47]}  h5 {[%clk 0:02:38]} 7. Bg2 {[%clk 0:02:38]}  Bc5 {[%clk 0:02:38]} 8. Qe2 {[%clk 0:02:20]}  Qe7 {[%clk 0:02:34]} 9. d3 {[%clk 0:02:04]}  O-O-O {[%clk 0:02:08]} 10. a3 {[%clk 0:02:01]}  Ng4 {[%clk 0:02:01]} 11. d4 {[%clk 0:01:47]}  Bd6 {[%clk 0:01:55]} 12. c4 {[%clk 0:01:47]}  c6 {[%clk 0:01:46]} 13. h3 {[%clk 0:01:40]}  Ngf6 {[%clk 0:01:44]} 14. Nc3 {[%clk 0:01:34]}  Ne4 {[%clk 0:01:42]} 15. Nxe4 {[%clk 0:01:11]}  Bxe4 {[%clk 0:01:43]} 16. Ne5 {[%clk 0:01:11]}  Bxg2 {[%clk 0:01:28]} 17. Qxg2 {[%clk 0:01:10]}  Nxe5 {[%clk 0:01:27]} 18. fxe5 {[%clk 0:01:05]}  Bc7 {[%clk 0:01:27]} 19. O-O-O {[%clk 0:00:31]}  Qg5 {[%clk 0:01:26]} 20. Rhe1 {[%clk 0:00:19]}  f5 {[%clk 0:01:24]} 21. Kb1 {[%clk 0:00:18]}  Qe7 {[%clk 0:01:03]} 22. Ka2 {[%clk 0:00:17]}  g5 {[%clk 0:01:00]} 23. a4 {[%clk 0:00:16]}  Qd7 {[%clk 0:00:56]} 24. Ba3 {[%clk 0:00:16]}  Ba5 {[%clk 0:00:55]} 25. Re2 {[%clk 0:00:15]}  a6 {[%clk 0:00:53]} 26. Rc2 {[%clk 0:00:15]}  Kb8 {[%clk 0:00:51]} 27. Qe2 {[%clk 0:00:14]}  Ka8 {[%clk 0:00:49]} 28. b4 {[%clk 0:00:13]}  Bc7 {[%clk 0:00:48]} 29. b5 {[%clk 0:00:14]}  Ba5 {[%clk 0:00:37]} 30. bxa6 {[%clk 0:00:12]}  bxa6 {[%clk 0:00:37]} 31. cxd5 {[%clk 0:00:12]}  Qxd5+ {[%clk 0:00:34]} 32. Qc4 {[%clk 0:00:12]}  h4 {[%clk 0:00:17]} 33. Rg1 {[%clk 0:00:06]}  hxg3 {[%clk 0:00:16]} 34. Rxg3 {[%clk 0:00:07]}  g4 {[%clk 0:00:16]} 35. hxg4 {[%clk 0:00:06]}  fxg4 {[%clk 0:00:15]} 36. Qxd5 {[%clk 0:00:06]}  cxd5 {[%clk 0:00:13]} 37. Rxg4 {[%clk 0:00:06]}  Rc8 {[%clk 0:00:14]} 38. Rxc8+ {[%clk 0:00:04]}  Rxc8 {[%clk 0:00:14]} 39. Bc5 {[%clk 0:00:04]}  Rb8 {[%clk 0:00:13]} 40. Rg6 {[%clk 0:00:04]}  Bc3 {[%clk 0:00:13]} 41. Rxe6 {[%clk 0:00:02]}  Rb2+ {[%clk 0:00:12]} 42. Ka3 {[%clk 0:00:03]}  Re2 {[%clk 0:00:11]} 43. Rxa6+ {[%clk 0:00:03]}  Kb7 {[%clk 0:00:11]} 44. Rb6+ {[%clk 0:00:02]}  Kc7 {[%clk 0:00:11]} 0-1


[Site "https://www.chess.com"]

[Event "Titled Tuesday Blitz May 24 Late 2022"]
[White "Kamsky, Gata"]
[Black "Darini, Pouria"]
[WhiteFideId "2000024"]
[BlackFideId "12502200"]
[WhiteElo "2645"]
[BlackElo "2483"]
[Result "1-0"]
[Round "08"]
[TimeControl "180+1"]
[Date "2022.05.24"]
[WhiteClock "0:00:36"]
[BlackClock "0:00:05"]

1. d4 {[%clk 0:03:00]}  Nf6 {[%clk 0:02:57]} 2. Nf3 {[%clk 0:02:55]}  g6 {[%clk 0:02:56]} 3. Bg5 {[%clk 0:02:54]}  Bg7 {[%clk 0:02:56]} 4. c3 {[%clk 0:02:54]}  O-O {[%clk 0:02:52]} 5. Nbd2 {[%clk 0:02:54]}  d5 {[%clk 0:02:50]} 6. e3 {[%clk 0:02:54]}  c6 {[%clk 0:02:50]} 7. Be2 {[%clk 0:02:52]}  Bf5 {[%clk 0:02:43]} 8. O-O {[%clk 0:02:51]}  Nbd7 {[%clk 0:02:43]} 9. a4 {[%clk 0:02:46]}  a5 {[%clk 0:02:43]} 10. Qb3 {[%clk 0:02:43]}  Qb6 {[%clk 0:02:42]} 11. Qxb6 {[%clk 0:02:38]}  Nxb6 {[%clk 0:02:43]} 12. Rfc1 {[%clk 0:02:31]}  Rfe8 {[%clk 0:02:42]} 13. Bf4 {[%clk 0:02:29]}  Nfd7 {[%clk 0:02:41]} 14. h3 {[%clk 0:02:16]}  e5 {[%clk 0:02:41]} 15. Bh2 {[%clk 0:02:15]}  e4 {[%clk 0:02:39]} 16. Ne1 {[%clk 0:02:15]}  Be6 {[%clk 0:02:39]} 17. g4 {[%clk 0:02:05]}  f5 {[%clk 0:02:24]} 18. g5 {[%clk 0:01:56]}  h6 {[%clk 0:02:19]} 19. h4 {[%clk 0:01:50]}  hxg5 {[%clk 0:02:18]} 20. hxg5 {[%clk 0:01:50]}  Kf7 {[%clk 0:02:08]} 21. Ng2 {[%clk 0:01:43]}  Rh8 {[%clk 0:02:08]} 22. Nf4 {[%clk 0:01:42]}  Rh7 {[%clk 0:02:04]} 23. Kg2 {[%clk 0:01:41]}  Rah8 {[%clk 0:02:04]} 24. Bg3 {[%clk 0:01:41]}  Bf8 {[%clk 0:02:04]} 25. Nb3 {[%clk 0:01:33]}  Nb8 {[%clk 0:01:29]} 26. Nxe6 {[%clk 0:01:30]}  Kxe6 {[%clk 0:01:27]} 27. Bxb8 {[%clk 0:01:29]}  Bd6 {[%clk 0:01:19]} 28. Bxd6 {[%clk 0:01:23]}  Kxd6 {[%clk 0:01:20]} 29. Rh1 {[%clk 0:01:22]}  Rxh1 {[%clk 0:01:20]} 30. Rxh1 {[%clk 0:01:21]}  Rxh1 {[%clk 0:01:21]} 31. Kxh1 {[%clk 0:01:21]}  Nxa4 {[%clk 0:01:22]} 32. Nxa5 {[%clk 0:01:21]}  b6 {[%clk 0:01:23]} 33. Nb3 {[%clk 0:01:20]}  Nxb2 {[%clk 0:01:23]} 34. Nd2 {[%clk 0:01:18]}  b5 {[%clk 0:01:23]} 35. Kg2 {[%clk 0:01:16]}  Na4 {[%clk 0:01:23]} 36. Nb1 {[%clk 0:01:15]}  Nb2 {[%clk 0:01:23]} 37. Kf1 {[%clk 0:01:15]}  Na4 {[%clk 0:01:22]} 38. Ke1 {[%clk 0:01:14]}  Nb6 {[%clk 0:01:23]} 39. Na3 {[%clk 0:01:11]}  Na8 {[%clk 0:01:23]} 40. Kf1 {[%clk 0:01:04]}  Nc7 {[%clk 0:01:23]} 41. Kg2 {[%clk 0:00:59]}  Ne6 {[%clk 0:01:24]} 42. Kg3 {[%clk 0:00:57]}  Nxg5 {[%clk 0:01:24]} 43. Nc2 {[%clk 0:00:57]}  Ne6 {[%clk 0:01:21]} 44. Kh4 {[%clk 0:00:57]}  Ke7 {[%clk 0:01:11]} 45. Nb4 {[%clk 0:00:56]}  Kd6 {[%clk 0:01:11]} 46. Kg3 {[%clk 0:00:52]}  Kd7 {[%clk 0:01:05]} 47. f3 {[%clk 0:00:51]}  exf3 {[%clk 0:01:03]} 48. Bxf3 {[%clk 0:00:51]}  Kd6 {[%clk 0:01:03]} 49. Nd3 {[%clk 0:00:51]}  g5 {[%clk 0:00:39]} 50. Bh5 {[%clk 0:00:50]}  Nc7 {[%clk 0:00:06]} 51. Bg6 {[%clk 0:00:45]}  Ke6 {[%clk 0:00:07]} 52. Nb4 {[%clk 0:00:44]}  Kf6 {[%clk 0:00:06]} 53. Bh7 {[%clk 0:00:40]}  Ne6 {[%clk 0:00:04]} 54. Nxc6 {[%clk 0:00:38]}  f4+ {[%clk 0:00:04]} 55. exf4 {[%clk 0:00:37]}  gxf4+ {[%clk 0:00:05]} 56. Kg4 {[%clk 0:00:37]}  f3 {[%clk 0:00:05]} 57. Bd3 {[%clk 0:00:37]}  f2 {[%clk 0:00:05]} 58. Kg3 {[%clk 0:00:37]}  Nf4 {[%clk 0:00:05]} 59. Kxf4 {[%clk 0:00:36]} 1-0


[Site "https://www.chess.com"]

[Event "Titled Tuesday Blitz May 24 Late 2022"]
[White "Karttunen, Mika"]
[Black "Moral Garcia, Serafin"]
[WhiteFideId "502081"]
[BlackFideId "2201925"]
[WhiteElo "2626"]
[BlackElo "2488"]
[Result "1-0"]
[Round "08"]
[TimeControl "180+1"]
[Date "2022.05.25"]
[WhiteClock "0:00:20"]
[BlackClock "0:00:29"]

1. e4 {[%clk 0:03:00]}  e5 {[%clk 0:02:51]} 2. Nf3 {[%clk 0:03:00]}  Nc6 {[%clk 0:02:43]} 3. Bc4 {[%clk 0:03:00]}  Bc5 {[%clk 0:02:42]} 4. O-O {[%clk 0:02:59]}  Nf6 {[%clk 0:02:40]} 5. d3 {[%clk 0:02:58]}  a6 {[%clk 0:02:39]} 6. c3 {[%clk 0:02:57]}  Ba7 {[%clk 0:02:38]} 7. Bb3 {[%clk 0:02:57]}  d6 {[%clk 0:02:38]} 8. h3 {[%clk 0:02:55]}  O-O {[%clk 0:02:38]} 9. Re1 {[%clk 0:02:55]}  h6 {[%clk 0:02:34]} 10. Nbd2 {[%clk 0:02:52]}  Re8 {[%clk 0:02:31]} 11. Nc4 {[%clk 0:02:51]}  Be6 {[%clk 0:02:30]} 12. Ne3 {[%clk 0:02:50]}  Qd7 {[%clk 0:02:12]} 13. Nh2 {[%clk 0:02:43]}  d5 {[%clk 0:02:05]} 14. Qf3 {[%clk 0:02:42]}  Rad8 {[%clk 0:02:02]} 15. Nhg4 {[%clk 0:02:33]}  Nxg4 {[%clk 0:01:58]} 16. Nxg4 {[%clk 0:02:28]}  dxe4 {[%clk 0:01:54]} 17. dxe4 {[%clk 0:02:28]}  Qd3 {[%clk 0:01:47]} 18. Be3 {[%clk 0:02:22]}  Bxb3 {[%clk 0:01:42]} 19. axb3 {[%clk 0:02:21]}  Bxe3 {[%clk 0:01:35]} 20. Nxe3 {[%clk 0:01:57]}  Qd6 {[%clk 0:01:34]} 21. Rad1 {[%clk 0:01:33]}  Qe6 {[%clk 0:01:34]} 22. Rd5 {[%clk 0:01:28]}  Ne7 {[%clk 0:01:32]} 23. Rxd8 {[%clk 0:01:23]}  Rxd8 {[%clk 0:01:32]} 24. b4 {[%clk 0:01:23]}  Rd3 {[%clk 0:01:27]} 25. Qe2 {[%clk 0:01:20]}  Rd7 {[%clk 0:01:21]} 26. Rd1 {[%clk 0:01:16]}  Rxd1+ {[%clk 0:01:17]} 27. Qxd1 {[%clk 0:01:16]}  Qd6 {[%clk 0:01:12]} 28. Qe2 {[%clk 0:01:13]}  g6 {[%clk 0:01:06]} 29. h4 {[%clk 0:01:11]}  h5 {[%clk 0:01:05]} 30. Nc4 {[%clk 0:01:04]}  Qe6 {[%clk 0:01:03]} 31. Na5 {[%clk 0:01:02]}  b6 {[%clk 0:00:56]} 32. Nc4 {[%clk 0:01:00]}  Qg4 {[%clk 0:00:47]} 33. Qxg4 {[%clk 0:00:59]}  hxg4 {[%clk 0:00:46]} 34. Nxe5 {[%clk 0:01:00]}  f5 {[%clk 0:00:46]} 35. Kf1 {[%clk 0:00:50]}  Kg7 {[%clk 0:00:44]} 36. exf5 {[%clk 0:00:46]}  gxf5 {[%clk 0:00:44]} 37. g3 {[%clk 0:00:38]}  Nd5 {[%clk 0:00:39]} 38. Ke2 {[%clk 0:00:36]}  Kf6 {[%clk 0:00:39]} 39. f4 {[%clk 0:00:34]}  Ke6 {[%clk 0:00:35]} 40. Nc4 {[%clk 0:00:21]}  Kf6 {[%clk 0:00:34]} 41. Ne3 {[%clk 0:00:21]}  Ne7 {[%clk 0:00:33]} 42. Kd3 {[%clk 0:00:21]}  Ke6 {[%clk 0:00:34]} 43. Kd4 {[%clk 0:00:21]}  Kd6 {[%clk 0:00:33]} 44. h5 {[%clk 0:00:20]}  Nc6+ {[%clk 0:00:31]} 45. Kd3 {[%clk 0:00:20]}  Ke6 {[%clk 0:00:31]} 46. h6 {[%clk 0:00:21]}  Ne7 {[%clk 0:00:31]} 47. h7 {[%clk 0:00:21]}  Ng6 {[%clk 0:00:32]} 48. Kd4 {[%clk 0:00:21]}  Nh8 {[%clk 0:00:31]} 49. Nd5 {[%clk 0:00:21]}  Kd6 {[%clk 0:00:30]} 50. Nf6 {[%clk 0:00:21]}  Ng6 {[%clk 0:00:29]} 51. Ne8+ {[%clk 0:00:19]}  Kd7 {[%clk 0:00:29]} 52. Ng7 {[%clk 0:00:20]} 1-0


[Site "https://www.chess.com"]

[Event "Titled Tuesday Blitz May 24 Late 2022"]
[White "Kruckenhauser, Arthur"]
[Black "Kostiukov, Alexandr"]
[WhiteFideId "1642812"]
[BlackFideId "14108100"]
[WhiteElo "2609"]
[BlackElo "2409"]
[Result "1-0"]
[Round "08"]
[TimeControl "180+1"]
[Date "2022.05.25"]
[WhiteClock "0:02:08"]
[BlackClock "0:01:37"]

1. Nf3 {[%clk 0:03:00]}  g6 {[%clk 0:02:59]} 2. g3 {[%clk 0:02:58]}  Bg7 {[%clk 0:02:58]} 3. Bg2 {[%clk 0:02:59]}  c5 {[%clk 0:02:57]} 4. O-O {[%clk 0:03:00]}  Nf6 {[%clk 0:02:57]} 5. c4 {[%clk 0:03:01]}  O-O {[%clk 0:02:57]} 6. Nc3 {[%clk 0:03:01]}  Nc6 {[%clk 0:02:57]} 7. d4 {[%clk 0:03:00]}  cxd4 {[%clk 0:02:57]} 8. Nxd4 {[%clk 0:03:01]}  Nxd4 {[%clk 0:02:58]} 9. Qxd4 {[%clk 0:03:01]}  d6 {[%clk 0:02:58]} 10. Qd3 {[%clk 0:02:59]}  Bf5 {[%clk 0:02:58]} 11. e4 {[%clk 0:02:56]}  Be6 {[%clk 0:02:58]} 12. b3 {[%clk 0:02:55]}  Qa5 {[%clk 0:02:58]} 13. Bd2 {[%clk 0:02:55]}  Qh5 {[%clk 0:02:57]} 14. Rac1 {[%clk 0:02:54]}  Ng4 {[%clk 0:02:57]} 15. h4 {[%clk 0:02:53]}  Ne5 {[%clk 0:02:51]} 16. Qe2 {[%clk 0:02:52]}  Qxe2 {[%clk 0:02:46]} 17. Nxe2 {[%clk 0:02:52]}  Bh3 {[%clk 0:02:32]} 18. Bc3 {[%clk 0:02:48]}  Bxg2 {[%clk 0:02:31]} 19. Kxg2 {[%clk 0:02:48]}  Nc6 {[%clk 0:02:24]} 20. Bxg7 {[%clk 0:02:48]}  Kxg7 {[%clk 0:02:25]} 21. Rfd1 {[%clk 0:02:48]}  a5 {[%clk 0:02:24]} 22. Nc3 {[%clk 0:02:47]}  f5 {[%clk 0:02:16]} 23. exf5 {[%clk 0:02:46]}  Rxf5 {[%clk 0:02:15]} 24. Rd2 {[%clk 0:02:46]}  Raf8 {[%clk 0:02:14]} 25. Re1 {[%clk 0:02:39]}  Re5 {[%clk 0:02:05]} 26. Rde2 {[%clk 0:02:38]}  Rxe2 {[%clk 0:02:04]} 27. Rxe2 {[%clk 0:02:39]}  Rf5 {[%clk 0:02:03]} 28. Nd5 {[%clk 0:02:35]}  Kf7 {[%clk 0:01:50]} 29. f4 {[%clk 0:02:33]}  Ke8 {[%clk 0:01:43]} 30. g4 {[%clk 0:02:30]}  Rf7 {[%clk 0:01:43]} 31. Kg3 {[%clk 0:02:30]}  Kd7 {[%clk 0:01:42]} 32. Rh2 {[%clk 0:02:20]}  h5 {[%clk 0:01:41]} 33. Re2 {[%clk 0:02:16]}  e6 {[%clk 0:01:39]} 34. Nc3 {[%clk 0:02:13]}  hxg4 {[%clk 0:01:38]} 35. Kxg4 {[%clk 0:02:12]}  Nd4 {[%clk 0:01:38]} 36. Rd2 {[%clk 0:02:10]}  Nf5 {[%clk 0:01:38]} 37. Ne4 {[%clk 0:02:08]}  Rh7 {[%clk 0:01:37]} 38. Nf6+ {[%clk 0:02:08]} 1-0


[Site "https://www.chess.com"]

[Event "Titled Tuesday Blitz May 24 Late 2022"]
[White "Livaic, Leon"]
[Black "Holt, Conrad"]
[WhiteFideId "14531534"]
[BlackFideId "2034387"]
[WhiteElo "2540"]
[BlackElo "2586"]
[Result "1-0"]
[Round "08"]
[TimeControl "180+1"]
[Date "2022.05.24"]
[WhiteClock "0:01:21"]
[BlackClock "0:00:09"]

1. d4 {[%clk 0:03:00]}  d5 {[%clk 0:02:54]} 2. c4 {[%clk 0:03:01]}  c6 {[%clk 0:02:54]} 3. cxd5 {[%clk 0:03:01]}  cxd5 {[%clk 0:02:54]} 4. Bf4 {[%clk 0:03:02]}  Nc6 {[%clk 0:02:53]} 5. e3 {[%clk 0:03:02]}  Bf5 {[%clk 0:02:51]} 6. Qb3 {[%clk 0:03:01]}  Qd7 {[%clk 0:02:41]} 7. Nc3 {[%clk 0:03:01]}  e6 {[%clk 0:02:41]} 8. Bb5 {[%clk 0:03:01]}  Nge7 {[%clk 0:02:34]} 9. Nf3 {[%clk 0:02:59]}  Ng6 {[%clk 0:02:35]} 10. Bg3 {[%clk 0:02:58]}  Be7 {[%clk 0:02:26]} 11. Rc1 {[%clk 0:02:57]}  O-O {[%clk 0:02:20]} 12. O-O {[%clk 0:02:56]}  Rfc8 {[%clk 0:01:31]} 13. Na4 {[%clk 0:02:56]}  Qd8 {[%clk 0:01:30]} 14. Bxc6 {[%clk 0:02:26]}  bxc6 {[%clk 0:01:31]} 15. Nc5 {[%clk 0:02:26]}  h5 {[%clk 0:01:25]} 16. h3 {[%clk 0:02:25]}  h4 {[%clk 0:01:21]} 17. Bh2 {[%clk 0:02:26]}  a5 {[%clk 0:01:10]} 18. Rc3 {[%clk 0:02:24]}  Ra7 {[%clk 0:00:55]} 19. Rfc1 {[%clk 0:02:22]}  a4 {[%clk 0:00:53]} 20. Nxa4 {[%clk 0:02:05]}  Rca8 {[%clk 0:00:47]} 21. Nb6 {[%clk 0:02:05]}  Rb7 {[%clk 0:00:38]} 22. Rxc6 {[%clk 0:02:05]}  e5 {[%clk 0:00:36]} 23. Nxe5 {[%clk 0:01:38]}  Nxe5 {[%clk 0:00:19]} 24. Bxe5 {[%clk 0:01:39]}  Bd7 {[%clk 0:00:18]} 25. Rc7 {[%clk 0:01:36]}  Raa7 {[%clk 0:00:16]} 26. Rxd7 {[%clk 0:01:28]}  Rxd7 {[%clk 0:00:15]} 27. Nxd7 {[%clk 0:01:28]}  Qxd7 {[%clk 0:00:16]} 28. a3 {[%clk 0:01:21]}  Kh7 {[%clk 0:00:14]} 29. Qc2+ {[%clk 0:01:21]}  g6 {[%clk 0:00:14]} 30. Qc8 {[%clk 0:01:21]}  Kh6 {[%clk 0:00:09]} 31. Qxd7 {[%clk 0:01:21]}  Rxd7 {[%clk 0:00:09]} 32. Rc7 {[%clk 0:01:21]} 1-0


[Site "https://www.chess.com"]

[Event "Titled Tuesday Blitz May 24 Late 2022"]
[White "Lopez Del Alamo, Antonio"]
[Black "Malka, Samuel"]
[WhiteFideId "2227339"]
[BlackFideId "20643675"]
[WhiteElo "2089"]
[BlackElo "2484"]
[Result "0-1"]
[Round "08"]
[TimeControl "180+1"]
[Date "2022.05.25"]
[WhiteClock "0:00:02"]
[BlackClock "0:00:26"]

1. e4 {[%clk 0:03:00]}  c5 {[%clk 0:02:58]} 2. Nf3 {[%clk 0:02:57]}  d6 {[%clk 0:02:52]} 3. d4 {[%clk 0:02:55]}  cxd4 {[%clk 0:02:52]} 4. Nxd4 {[%clk 0:02:54]}  Nf6 {[%clk 0:02:52]} 5. Nc3 {[%clk 0:02:53]}  a6 {[%clk 0:02:52]} 6. Be2 {[%clk 0:02:53]}  e5 {[%clk 0:02:51]} 7. Nb3 {[%clk 0:02:53]}  Be6 {[%clk 0:02:50]} 8. Be3 {[%clk 0:02:54]}  Nbd7 {[%clk 0:02:47]} 9. g4 {[%clk 0:02:51]}  Nb6 {[%clk 0:02:46]} 10. g5 {[%clk 0:02:50]}  Nfd7 {[%clk 0:02:46]} 11. h4 {[%clk 0:02:47]}  Nc4 {[%clk 0:02:42]} 12. Bxc4 {[%clk 0:02:33]}  Bxc4 {[%clk 0:02:43]} 13. Qd2 {[%clk 0:02:32]}  Be7 {[%clk 0:02:30]} 14. O-O-O {[%clk 0:02:26]}  Qc7 {[%clk 0:01:46]} 15. Kb1 {[%clk 0:02:17]}  O-O-O {[%clk 0:01:23]} 16. Nd5 {[%clk 0:02:05]}  Bxd5 {[%clk 0:01:23]} 17. Qxd5 {[%clk 0:01:59]}  Rhf8 {[%clk 0:01:21]} 18. c4 {[%clk 0:01:49]}  Nc5 {[%clk 0:01:19]} 19. f3 {[%clk 0:01:37]}  Kb8 {[%clk 0:01:18]} 20. Qd2 {[%clk 0:01:28]}  Ne6 {[%clk 0:01:14]} 21. Rc1 {[%clk 0:01:14]}  Rc8 {[%clk 0:01:13]} 22. Qf2 {[%clk 0:00:32]}  f5 {[%clk 0:00:46]} 23. Qg2 {[%clk 0:00:25]}  fxe4 {[%clk 0:00:30]} 24. fxe4 {[%clk 0:00:14]}  Nf4 {[%clk 0:00:27]} 25. Bxf4 {[%clk 0:00:14]}  Rxf4 {[%clk 0:00:28]} 26. Nd2 {[%clk 0:00:10]}  Qc6 {[%clk 0:00:26]} 27. b3 {[%clk 0:00:08]}  Rcf8 {[%clk 0:00:26]} 28. Rhf1 {[%clk 0:00:06]}  Bd8 {[%clk 0:00:26]} 29. Rce1 {[%clk 0:00:05]}  Ba5 {[%clk 0:00:25]} 30. Rxf4 {[%clk 0:00:02]}  Rxf4 {[%clk 0:00:26]} 0-1


[Site "https://www.chess.com"]

[Event "Titled Tuesday Blitz May 24 Late 2022"]
[White "Mangialardo, Tiago Carvalho"]
[Black "Villiers, Thomas"]
[WhiteFideId "2130718"]
[BlackFideId "427209"]
[WhiteElo "2149"]
[BlackElo "2164"]
[Result "1-0"]
[Round "08"]
[TimeControl "180+1"]
[Date "2022.05.25"]
[WhiteClock "0:00:03"]
[BlackClock "0:00:46"]

1. e4 {[%clk 0:03:00]}  c5 {[%clk 0:02:58]} 2. Nf3 {[%clk 0:03:00]}  d6 {[%clk 0:02:57]} 3. d4 {[%clk 0:03:00]}  cxd4 {[%clk 0:02:58]} 4. Nxd4 {[%clk 0:03:01]}  Nf6 {[%clk 0:02:58]} 5. Nc3 {[%clk 0:03:02]}  a6 {[%clk 0:02:58]} 6. Be3 {[%clk 0:03:02]}  e6 {[%clk 0:02:58]} 7. Be2 {[%clk 0:03:02]}  Be7 {[%clk 0:02:58]} 8. Qd2 {[%clk 0:03:03]}  O-O {[%clk 0:02:56]} 9. g4 {[%clk 0:02:55]}  b5 {[%clk 0:02:54]} 10. g5 {[%clk 0:02:53]}  Nfd7 {[%clk 0:02:53]} 11. O-O-O {[%clk 0:02:51]}  Bb7 {[%clk 0:02:51]} 12. f3 {[%clk 0:02:47]}  Nc6 {[%clk 0:02:49]} 13. h4 {[%clk 0:02:46]}  Qa5 {[%clk 0:02:43]} 14. Nb3 {[%clk 0:02:38]}  Qc7 {[%clk 0:02:41]} 15. Nd4 {[%clk 0:02:38]}  Rfc8 {[%clk 0:02:38]} 16. h5 {[%clk 0:02:21]}  Nce5 {[%clk 0:02:38]} 17. g6 {[%clk 0:01:50]}  Nb6 {[%clk 0:02:37]} 18. Bg5 {[%clk 0:01:08]}  Nbc4 {[%clk 0:02:33]} 19. Bxc4 {[%clk 0:00:50]}  Nxc4 {[%clk 0:02:32]} 20. Qg2 {[%clk 0:00:41]}  b4 {[%clk 0:02:17]} 21. Nb1 {[%clk 0:00:26]}  Bxg5+ {[%clk 0:02:08]} 22. Qxg5 {[%clk 0:00:26]}  e5 {[%clk 0:02:02]} 23. gxh7+ {[%clk 0:00:25]}  Kxh7 {[%clk 0:01:58]} 24. Rdg1 {[%clk 0:00:26]}  Rg8 {[%clk 0:01:54]} 25. h6 {[%clk 0:00:08]}  g6 {[%clk 0:01:49]} 26. Nf5 {[%clk 0:00:03]}  Rac8 {[%clk 0:01:39]} 27. Rg2 {[%clk 0:00:01]}  Qd7 {[%clk 0:01:11]} 28. Qf6 {[%clk 0:00:02]}  Qxf5 {[%clk 0:00:48]} 29. exf5 {[%clk 0:00:01]}  Bxf3 {[%clk 0:00:46]} 30. Qxf7+ {[%clk 0:00:01]}  Kh8 {[%clk 0:00:46]} 31. Qf6+ {[%clk 0:00:01]}  Kh7 {[%clk 0:00:46]} 32. fxg6+ {[%clk 0:00:01]}  Rxg6 {[%clk 0:00:46]} 33. Qxg6+ {[%clk 0:00:02]}  Kh8 {[%clk 0:00:46]} 34. Qg7# {[%clk 0:00:03]} 1-0


[Site "https://www.chess.com"]

[Event "Titled Tuesday Blitz May 24 Late 2022"]
[White "Meunier-Pion, Jean"]
[Black "Kujawski, Adam"]
[WhiteFideId "20685327"]
[BlackFideId "1100920"]
[WhiteElo "2124"]
[BlackElo "1982"]
[Result "1-0"]
[Round "08"]
[TimeControl "180+1"]
[Date "2022.05.25"]
[WhiteClock "0:01:11"]
[BlackClock "0:00:20"]

1. e4 {[%clk 0:03:00]}  e5 {[%clk 0:02:59]} 2. Nf3 {[%clk 0:03:00]}  Nc6 {[%clk 0:03:00]} 3. Bb5 {[%clk 0:03:01]}  a6 {[%clk 0:03:00]} 4. Ba4 {[%clk 0:03:01]}  Nf6 {[%clk 0:03:00]} 5. d3 {[%clk 0:03:01]}  d6 {[%clk 0:02:58]} 6. c3 {[%clk 0:03:00]}  g6 {[%clk 0:02:58]} 7. O-O {[%clk 0:03:01]}  Bg7 {[%clk 0:02:58]} 8. h3 {[%clk 0:03:00]}  O-O {[%clk 0:02:58]} 9. Re1 {[%clk 0:03:00]}  Bd7 {[%clk 0:02:58]} 10. Nbd2 {[%clk 0:02:59]}  Qe7 {[%clk 0:02:54]} 11. Nf1 {[%clk 0:02:57]}  Nd8 {[%clk 0:02:53]} 12. Bc2 {[%clk 0:02:57]}  Ne6 {[%clk 0:02:53]} 13. d4 {[%clk 0:02:56]}  Nh5 {[%clk 0:02:41]} 14. Ne3 {[%clk 0:02:50]}  c6 {[%clk 0:02:31]} 15. d5 {[%clk 0:02:48]}  Nef4 {[%clk 0:02:23]} 16. dxc6 {[%clk 0:02:45]}  Bxc6 {[%clk 0:02:01]} 17. b3 {[%clk 0:02:39]}  Rad8 {[%clk 0:01:54]} 18. Ba3 {[%clk 0:02:38]}  f5 {[%clk 0:01:44]} 19. exf5 {[%clk 0:02:25]}  gxf5 {[%clk 0:01:43]} 20. Nxf5 {[%clk 0:02:19]}  Rxf5 {[%clk 0:01:36]} 21. Bxf5 {[%clk 0:02:19]}  Nxg2 {[%clk 0:01:00]} 22. Kxg2 {[%clk 0:02:12]}  Nf4+ {[%clk 0:00:59]} 23. Kh2 {[%clk 0:02:08]}  Qf7 {[%clk 0:00:47]} 24. Bxh7+ {[%clk 0:01:57]}  Kxh7 {[%clk 0:00:46]} 25. Ng5+ {[%clk 0:01:57]}  Kg6 {[%clk 0:00:42]} 26. Nxf7 {[%clk 0:01:56]}  Kxf7 {[%clk 0:00:41]} 27. Re3 {[%clk 0:01:36]}  Rh8 {[%clk 0:00:38]} 28. Qxd6 {[%clk 0:01:32]}  Bf6 {[%clk 0:00:33]} 29. Qc7+ {[%clk 0:01:25]}  Ke6 {[%clk 0:00:30]} 30. Rae1 {[%clk 0:01:22]}  Rh5 {[%clk 0:00:25]} 31. Qc8+ {[%clk 0:01:17]}  Kf7 {[%clk 0:00:23]} 32. Qf8+ {[%clk 0:01:14]}  Ke6 {[%clk 0:00:23]} 33. Qg8+ {[%clk 0:01:11]}  Kf5 {[%clk 0:00:20]} 34. Qg4# {[%clk 0:01:11]} 1-0


[Site "https://www.chess.com"]